bitfinex/quotes_ETHUSD_20241105
["timestamp","ask_amount","ask_price","bid_price","bid_amount"]
[1730804320358,6.33671294,2437.0,2436.9,0.28169941]
[1730804320753,4.18384898,2437.0,2436.9,0.00368754]
[1730804320954,6.33672296,2437.0,2436.9,0.00368754]
[1730804321188,6.33672296,2437.0,2436.9,0.28169941]
[1730804321391,4.18384898,2437.0,2436.9,1.10399941]
[1730804322079,5.54157823,2437.0,2436.9,0.28169941]
[1730804322388,6.76757826,2437.0,2436.9,0.00368754]
[1730804322556,4.18384898,2437.0,2436.9,0.00368754]
[1730804322752,4.18384898,2437.0,2436.9,1.10385935]
[1730804322957,4.1034,2437.0,2436.9,1.10385935]
[1730804323867,4.1034,2437.0,2436.9,0.82598754]
[1730804324277,4.1034,2437.0,2436.9,1.10385935]
[1730804325356,4.1034,2437.0,2436.9,0.82598754]
[1730804325562,4.18384898,2437.0,2436.9,0.82598754]
[1730804325761,4.18384898,2437.0,2436.9,1.10385935]
[1730804326001,4.1034,2437.0,2436.9,1.10385935]
[1730804326176,4.18384898,2437.0,2436.9,1.10385935]
[1730804327083,6.33716433,2437.0,2436.9,1.10385935]
[1730804329226,2.23376433,2437.0,2436.9,1.10385935]
[1730804330003,2.23376433,2437.0,2436.9,1.10383268]
[1730804331268,2.23390169,2437.0,2436.9,1.10383268]
[1730804333383,2.15345271,2437.1,2436.9,2.03596995]
[1730804333983,2.15369513,2437.1,2436.9,2.03596995]
[1730804334363,2.15369513,2437.1,2437.0,0.01]
[1730804334595,2.15369513,2437.1,2437.0,0.28765339]
[1730804335178,2.15369513,2437.1,2437.0,0.90259821]
[1730804335380,2.15369513,2437.2,2437.1,0.00368754]
[1730804335575,6.33709411,2437.3,2437.2,0.01]
[1730804335778,4.18339898,2437.3,2437.2,0.01]
[1730804336101,4.18339898,2437.3,2437.2,0.28753248]
[1730804336674,4.18339898,2437.3,2437.2,1.08973248]
[1730804336911,6.25637979,2437.3,2437.2,1.08973248]
[1730804337407,6.33682877,2437.3,2437.2,1.08973248]
[1730804339676,6.33682877,2437.3,2437.2,0.28753248]
[1730804340115,4.18339898,2437.3,2437.2,0.28753248]
[1730804340797,6.33655739,2437.3,2437.2,0.28753248]
[1730804341370,6.33655739,2437.3,2437.2,0.01]
[1730804341571,6.33649375,2437.3,2437.1,0.82788754]
[1730804341806,2.15309477,2437.2,2437.1,0.82788754]
[1730804342311,7.61388402,2437.2,2437.1,0.00368754]
[1730804342472,7.61399603,2437.2,2437.1,0.00368754]
[1730804342669,4.18350898,2437.2,2437.1,0.00368754]
[1730804344171,5.54123823,2437.2,2437.1,0.00368754]
[1730804346396,5.54123823,2437.2,2437.1,0.28115793]
[1730804346807,4.18350898,2437.2,2437.1,0.28115793]
[1730804349519,9.42837594,2437.2,2437.1,0.27747039]
[1730804349813,4.1034,2437.0,2436.9,0.00368754]
[1730804350020,4.18384898,2437.0,2436.9,0.00368754]
[1730804351580,7.6985062,2437.0,2436.9,0.00368754]
[1730804351780,6.34077695,2437.0,2436.9,0.00368754]
[1730804352088,7.6985062,2437.0,2436.9,0.00368754]
[1730804353003,7.6985062,2437.0,2436.6,0.00368754]
[1730804353004,4.1037,2436.9,2436.6,0.00368754]
[1730804353312,2.2339851,2436.8,2436.6,0.00368754]
[1730804353573,2.2339851,2436.8,2436.7,0.01]
[1730804354090,2.2339851,2436.8,2436.7,0.7809]
[1730804354290,0.08044898,2436.8,2436.7,4.88481]
[1730804354490,2.15338861,2436.9,2436.8,0.00368754]
[1730804354918,2.23383759,2437.0,2436.8,0.00368754]
[1730804355095,2.15338861,2436.9,2436.8,0.00368754]
[1730804357007,2.15338861,2437.0,2436.8,1.26344129]
[1730804357814,2.15338861,2437.0,2436.9,0.01]
[1730804359195,2.15347031,2437.0,2436.9,0.01]
[1730804359937,2.15347031,2437.0,2436.9,4.11357]
[1730804360108,2.15347031,2437.1,2437.0,0.00368754]
[1730804361122,2.15347031,2437.1,2437.0,0.28144597]
[1730804361534,2.15347031,2437.1,2437.0,1.09164597]
[1730804361748,2.23391929,2437.2,2437.1,0.01]
[1730804362237,2.23391929,2437.2,2437.1,0.28714599]
[1730804363813,2.23394963,2437.2,2437.1,0.28714599]
[1730804364029,2.15350065,2437.2,2437.1,0.28714599]
[1730804364342,15.29189091,2437.6,2437.2,0.00368754]
[1730804364343,2.15350065,2437.3,2437.2,0.00368754]
[1730804364545,2.15350065,2437.3,2437.2,0.81768754]
[1730804364709,2.15350065,2437.3,2437.2,1.09470305]
[1730804366108,2.23394963,2437.4,2437.3,0.01]
[1730804366302,4.18317898,2437.4,2437.3,0.01]
[1730804366523,4.18317898,2437.4,2437.3,0.28697257]
[1730804366837,4.18317898,2437.4,2437.3,0.27688505]
[1730804367066,4.18317898,2437.4,2437.3,0.01]
[1730804367292,4.18317898,2437.4,2437.3,0.28688505]
[1730804367541,4.18317898,2437.4,2437.3,0.01]
[1730804367721,4.18317898,2437.4,2437.3,0.27688505]
[1730804368041,4.18317898,2437.4,2437.3,0.28688505]
[1730804368243,6.33614434,2437.4,2437.3,0.01]
[1730804368447,4.18317898,2437.4,2437.3,0.01]
[1730804368606,4.18317898,2437.4,2437.3,0.28660495]
[1730804369206,0.08044898,2437.4,2437.3,0.28660495]
[1730804369618,2.23342687,2437.4,2437.3,0.28660495]
[1730804370525,2.23340601,2437.4,2437.3,0.28660495]
[1730804373019,2.23338052,2437.4,2437.3,0.28660495]
[1730804376851,2.23338052,2437.4,2437.3,1.03730495]
[1730804377206,2.15293154,2437.5,2437.4,0.00368754]
[1730804377635,2.23307247,2437.6,2437.4,0.28021454]
[1730804381359,6.33546247,2437.6,2437.5,0.01]
[1730804381519,4.10256,2437.5,2437.4,0.28021454]
[1730804381720,4.10256,2437.5,2437.4,0.00368754]
[1730804381912,4.18300898,2437.5,2437.4,0.00368754]
[1730804382154,4.18300898,2437.5,2437.4,0.27992577]
[1730804382458,4.18300898,2437.5,2437.4,0.00368754]
[1730804382859,0.08044898,2437.5,2437.4,0.00368754]
[1730804383016,0.08044898,2437.5,2437.4,0.27992577]
[1730804383418,0.08044898,2437.5,2437.4,1.05542577]
[1730804384020,2.23217035,2437.7,2437.5,0.01]
[1730804384224,2.15172137,2437.7,2437.6,0.7755]
[1730804384427,2.15172137,2437.7,2437.6,1.05534865]
[1730804384651,2.23217035,2437.8,2437.6,1.05534865]
[1730804385543,6.33424035,2437.8,2437.6,0.27984865]
[1730804385925,7.16584035,2437.8,2437.6,0.27984865]
[1730804386268,4.10222,2437.7,2437.6,0.27984865]
[1730804387375,3.062566,2437.8,2437.6,0.27984865]
[1730804387580,7.164686,2437.8,2437.6,0.00368754]
[1730804387871,7.164686,2437.8,2437.7,0.27600445]
[1730804388177,7.164686,2437.8,2437.6,0.00368754]
[1730804388381,7.164686,2437.8,2437.7,0.2759957]
[1730804388680,7.164686,2437.8,2437.6,0.00368754]
[1730804388843,7.164686,2437.8,2437.7,0.2759957]
[1730804389567,7.164686,2437.8,2437.7,0.2859957]
[1730804390167,7.164686,2437.8,2437.7,0.01]
[1730804390369,7.164686,2437.8,2437.7,0.2859957]
[1730804391676,7.1640434,2437.8,2437.7,0.2859957]
[1730804393984,7.1640434,2437.8,2437.7,0.01]
[1730804394162,7.16374466,2437.8,2437.7,0.01]
[1730804394375,5.01416898,2437.8,2437.7,0.28576822]
[1730804394681,7.16373623,2437.8,2437.7,0.28576822]
[1730804396587,7.16385666,2437.8,2437.7,0.28576822]
[1730804398091,6.33225666,2437.8,2437.7,0.28576822]
[1730804399788,6.33302794,2437.8,2437.7,0.28576822]
[1730804400758,2.23090794,2437.8,2437.7,0.28576822]
[1730804400963,2.23090794,2437.9,2437.7,5.18758822]
[1730804401161,2.15045896,2437.9,2437.8,0.52281512]
[1730804402376,2.15045896,2438.0,2437.8,4.62486512]
[1730804402782,2.15045896,2438.1,2438.0,0.01368754]
[1730804403076,2.23090794,2438.2,2438.0,0.82578754]
[1730804404369,2.23090794,2438.2,2438.0,1.36891411]
[1730804405869,2.23048996,2438.2,2438.0,1.36891411]
[1730804407401,0.08044898,2438.2,2438.0,1.36891411]
[1730804408463,0.08044898,2438.2,2438.0,0.82578754]
[1730804409106,0.08044898,2438.2,2438.0,4.92749754]
[1730804409697,0.08044898,2438.3,2438.0,0.82578754]
[1730804409913,2.14949062,2438.4,2438.2,0.01368754]
[1730804410220,2.14949062,2438.5,2438.4,0.01368754]
[1730804410412,0.08044898,2438.6,2438.4,4.60588529]
[1730804410608,0.08044898,2438.7,2438.6,0.00368754]
[1730804411477,0.08044898,2438.7,2438.4,0.01368754]
[1730804411682,0.08044898,2438.7,2438.6,0.00368754]
[1730804411877,4.1004,2438.8,2438.4,0.01368754]
[1730804411878,4.10088,2438.5,2438.4,0.01368754]
[1730804412321,5.43577787,2438.5,2438.4,0.00368754]
[1730804413806,5.43577787,2438.5,2438.4,0.01368754]
[1730804416117,5.43577787,2438.5,2438.4,0.00368754]
[1730804416118,4.18132898,2438.5,2438.4,0.00368754]
[1730804416295,4.10121,2438.3,2438.2,0.01]
[1730804416621,5.00995898,2438.3,2438.2,0.01368754]
[1730804417429,5.00995898,2438.3,2438.2,0.2876932]
[1730804417635,5.00995898,2438.3,2438.2,0.01368754]
[1730804417835,5.00995898,2438.3,2438.2,0.28762324]
[1730804419840,5.00995898,2438.3,2438.2,0.2839357]
[1730804421719,0.08044898,2438.3,2438.2,1.10082324]
[1730804421938,0.08044898,2438.4,2438.2,1.10082324]
[1730804422350,0.08044898,2438.7,2438.4,0.01368754]
[1730804422653,4.18103898,2438.7,2438.4,0.01368754]
[1730804422828,4.18103898,2438.7,2438.5,0.2739906]
[1730804423022,0.08044898,2438.7,2438.5,0.2739906]
[1730804423231,4.18107898,2438.7,2438.5,0.2739906]
[1730804424022,0.08044898,2438.7,2438.6,0.01368754]
[1730804424222,7.60444928,2438.9,2438.6,0.01368754]
[1730804424223,4.18081898,2438.8,2438.6,0.01368754]
[1730804424423,0.08044898,2438.8,2438.6,0.28765273]
[1730804428768,0.08044898,2438.8,2438.6,4.38834273]
[1730804429272,0.08044898,2438.8,2438.6,0.28765273]
[1730804429781,6.24599003,2439.3,2439.0,0.01368754]
[1730804430016,4.09948,2439.4,2439.2,0.01]
[1730804430017,2.14638003,2439.4,2439.2,0.01]
[1730804430281,2.14638003,2439.4,2439.2,0.01368754]
[1730804430282,0.08044898,2439.4,2439.2,0.01368754]
[1730804430576,0.08044898,2439.4,2439.3,0.27334147]
[1730804430745,0.08044898,2439.4,2439.2,0.01368754]
[1730804430938,4.17980898,2439.4,2439.3,0.27334147]
[1730804431143,4.17980898,2439.4,2439.2,0.01368754]
[1730804431144,4.09953,2439.3,2439.2,0.01368754]
[1730804431475,4.09953,2439.3,2439.2,0.27335813]
[1730804431476,5.7413639,2439.3,2439.2,0.27335813]
[1730804431661,4.09987,2439.1,2439.0,0.00368754]
[1730804431865,4.18031898,2439.1,2439.0,0.00368754]
[1730804432955,0.08044898,2439.1,2439.0,0.01368754]
[1730804435556,4.18031898,2439.1,2439.0,0.01368754]
[1730804439453,0.08044898,2439.1,2439.0,0.01368754]
[1730804440853,4.18031898,2439.1,2439.0,0.01368754]
[1730804441966,4.18031898,2439.1,2439.0,0.28609997]
[1730804449891,0.08044898,2439.1,2439.0,0.28609997]
[1730804450068,4.18031898,2439.1,2439.0,0.28609997]
[1730804450973,0.08044898,2439.1,2439.0,0.28609997]
[1730804451171,0.08044898,2439.1,2439.0,5.18953997]
[1730804451418,3.35454692,2439.6,2439.5,0.01368754]
[1730804451419,0.08044898,2439.6,2439.5,0.01368754]
[1730804451767,0.08044898,2439.7,2439.5,0.28609532]
[1730804452802,0.08044898,2439.8,2439.5,0.28609532]
[1730804454404,4.09886,2439.7,2439.5,0.28609532]
[1730804454716,6.24401268,2439.9,2439.5,0.28609532]
[1730804454717,0.08044898,2439.6,2439.5,0.28609532]
[1730804455038,4.09888,2439.7,2439.5,0.01368754]
[1730804455213,0.08044898,2439.6,2439.5,0.2860691]
[1730804457777,0.08044898,2439.7,2439.5,0.2860691]
[1730804457978,4.17931898,2439.7,2439.5,0.2860691]
[1730804459719,0.08044898,2439.7,2439.5,0.2860691]
[1730804460026,4.17933898,2439.7,2439.5,0.2860691]
[1730804461453,4.09903,2439.6,2439.5,0.2860691]
[1730804461954,4.17947898,2439.6,2439.5,0.2860691]
[1730804462849,0.08044898,2439.6,2439.5,0.2860691]
[1730804463250,4.17913898,2439.8,2439.7,0.01]
[1730804463431,5.53686823,2439.8,2439.7,0.01]
[1730804464652,4.17913898,2439.8,2439.7,0.01]
[1730804464858,4.17913898,2439.8,2439.7,0.28197255]
[1730804468053,5.43347855,2439.8,2439.7,0.27197255]
[1730804468354,4.09903,2439.6,2439.5,0.01368754]
[1730804468574,4.17947898,2439.6,2439.5,0.2856934]
[1730804472195,0.08044898,2439.6,2439.5,0.2856934]
[1730804473499,4.17947898,2439.6,2439.5,0.2856934]
[1730804473846,0.08044898,2439.6,2439.5,0.2856934]
[1730804479205,0.08044898,2439.7,2439.5,0.2856934]
[1730804481485,6.24529356,2440.0,2439.6,0.8174]
[1730804481812,0.08044898,2439.9,2439.8,0.00368754]
[1730804482184,0.08044898,2439.9,2439.8,0.27548621]
[1730804482519,6.32574254,2440.0,2439.8,0.27548621]
[1730804482874,2.22729254,2440.0,2439.8,0.27548621]
[1730804483073,0.08044898,2440.0,2439.8,0.27548621]
[1730804483388,4.17880898,2440.0,2439.8,0.27548621]
[1730804483577,2.22742629,2440.0,2439.8,0.27548621]
[1730804483917,0.08044898,2440.0,2439.8,0.00368754]
[1730804484215,0.08044898,2440.0,2439.8,0.01368754]
[1730804484719,0.08044898,2440.0,2439.9,0.27109188]
[1730804487026,0.08044898,2440.1,2439.9,1.08539188]
[1730804487192,0.08044898,2440.1,2440.0,0.00368754]
[1730804487533,0.08044898,2440.1,2440.0,0.27433484]
[1730804488322,4.17863898,2440.1,2440.0,0.27433484]
[1730804488519,0.08044898,2440.1,2440.0,0.27433484]
[1730804491330,4.09809,2440.2,2440.0,0.27433484]
[1730804491331,4.17853898,2440.2,2440.0,0.27433484]
[1730804493750,8.27666898,2440.2,2440.0,0.27433484]
[1730804494039,8.19622,2440.2,2440.0,0.27433484]
[1730804494244,0.08044898,2440.1,2440.0,0.27433484]
[1730804494474,4.17863898,2440.1,2440.0,0.27433484]
[1730804494944,4.17863898,2440.1,2440.0,0.28433484]
[1730804495313,0.08044898,2440.1,2440.0,0.28433484]
[1730804495909,6.32636493,2440.1,2440.0,0.28433484]
[1730804496378,0.08044898,2440.1,2440.0,0.28433484]
[1730804496539,2.22817493,2440.1,2440.0,0.28433484]
[1730804498733,6.32636493,2440.1,2440.0,0.28433484]
[1730804499758,2.22817493,2440.1,2440.0,0.28433484]
[1730804499915,4.09809,2440.2,2440.0,0.28433484]
[1730804499916,6.32625493,2440.2,2440.0,0.28433484]
[1730804500745,4.09819,2440.1,2440.0,0.28433484]
[1730804500929,6.24591595,2440.1,2440.0,0.28433484]
[1730804501349,4.09819,2440.1,2440.0,0.28433484]
[1730804501540,6.24591595,2440.1,2440.0,0.28433484]
[1730804501751,4.09819,2440.1,2440.0,0.28433484]
[1730804501956,2.14772595,2440.1,2440.0,0.28433484]
[1730804502814,6.32621493,2440.2,2440.0,0.28433484]
[1730804503658,2.14772595,2440.1,2440.0,0.28433484]
[1730804504344,2.22817493,2440.1,2440.0,0.28433484]
[1730804504726,0.08044898,2440.1,2440.0,0.28433484]
[1730804505059,2.22817493,2440.1,2440.0,0.28433484]
[1730804505577,2.14772595,2440.2,2440.0,0.28433484]
[1730804505732,2.14772595,2440.2,2440.0,1.21388732]
[1730804507563,2.14918001,2440.2,2440.0,1.21388732]
[1730804508135,2.14918001,2440.2,2440.0,5.31223732]
[1730804508574,2.22962899,2440.3,2440.0,5.31223732]
[1730804508864,2.22962899,2440.3,2440.2,0.01368754]
[1730804509174,2.14918001,2440.3,2440.2,0.80248754]
[1730804509382,2.14918001,2440.3,2440.2,2.09272748]
[1730804510362,2.14918001,2440.3,2440.2,1.30392748]
[1730804511936,2.14879299,2440.3,2440.2,1.30392748]
[1730804513485,2.14879299,2440.3,2440.2,0.28403961]
[1730804514889,6.24664401,2440.3,2440.2,0.28403961]
[1730804515377,2.12924299,2440.3,2440.2,0.28403961]
[1730804515740,2.12924299,2440.3,2440.2,0.01368754]
[1730804516245,2.12924299,2440.3,2440.2,0.28381262]
[1730804516775,0.08044898,2440.3,2440.2,0.28381262]
[1730804518159,4.17829898,2440.3,2440.2,0.28381262]
[1730804521691,0.08044898,2440.3,2440.2,0.28381262]
[1730804521876,4.98639898,2440.3,2440.2,0.27012508]
[1730804522078,4.17829898,2440.3,2440.2,0.00368754]
[1730804522280,4.17829898,2440.3,2440.2,0.27386497]
[1730804523693,4.17829898,2440.3,2440.2,1.04166497]
[1730804523694,2.15013382,2440.3,2440.2,1.04166497]
[1730804523894,6.67704149,2440.5,2440.3,0.01]
[1730804524081,4.17799898,2440.5,2440.3,0.01]
[1730804524277,6.75749047,2440.5,2440.4,0.27015287]
[1730804525251,2.57949149,2440.5,2440.4,0.27384041]
[1730804525451,4.09736,2440.6,2440.4,0.27384041]
[1730804525452,6.75730047,2440.6,2440.4,0.27384041]
[1730804525778,4.17780898,2440.6,2440.4,0.27384041]
[1730804525945,2.15038207,2440.5,2440.4,0.27384041]
[1730804526147,2.15038207,2440.5,2440.4,1.2500824]
[1730804526435,2.15038207,2440.5,2440.4,2.0400824]
[1730804527369,4.09742,2440.6,2440.4,2.0400824]
[1730804527766,2.15042343,2440.5,2440.4,2.0400824]
[1730804527980,4.17786898,2440.6,2440.4,2.0400824]
[1730804528298,0.08044898,2440.6,2440.5,0.20500824]
[1730804528456,0.08044898,2440.6,2440.5,0.47495242]
[1730804528659,4.17779898,2440.6,2440.5,0.47495242]
[1730804532301,6.3277414,2440.6,2440.5,0.47495242]
[1730804532617,6.67726127,2440.9,2440.7,0.01]
[1730804532794,4.09709,2440.8,2440.7,0.01]
[1730804533211,0.8083,2440.7,2440.4,0.01368754]
[1730804533414,0.8083,2440.7,2440.4,0.00368754]
[1730804533415,6.26354925,2440.5,2440.4,0.00368754]
[1730804533614,7.05541611,2440.5,2440.4,0.00368754]
[1730804533941,7.05568723,2440.5,2440.4,0.00368754]
[1730804534928,7.13613621,2440.5,2440.4,0.00368754]
[1730804535837,4.98626898,2440.5,2440.4,0.00368754]
[1730804539320,6.24700674,2440.6,2440.4,0.81388754]
[1730804539518,6.24700674,2440.6,2440.4,1.56571208]
[1730804539519,6.24696069,2440.6,2440.4,1.56571208]
[1730804539694,4.09752,2440.5,2440.4,1.56571208]
[1730804539895,4.09752,2440.5,2440.4,1.07452733]
[1730804540433,6.24696069,2440.6,2440.4,1.07452733]
[1730804540721,4.09752,2440.5,2440.4,1.07452733]
[1730804540886,6.24698069,2440.6,2440.4,1.07452733]
[1730804542510,4.09738,2440.6,2440.4,1.07452733]
[1730804542836,4.09752,2440.5,2440.4,1.07452733]
[1730804543344,4.09738,2440.6,2440.4,1.07452733]
[1730804544416,4.09738,2440.6,2440.4,1.59177906]
[1730804544792,4.17745898,2440.8,2440.6,0.00368754]
[1730804545002,4.09687,2440.9,2440.7,0.01]
[1730804545317,4.09687,2440.9,2440.8,0.00368754]
[1730804545520,4.17731898,2440.9,2440.8,0.26420863]
[1730804545834,4.98711898,2440.9,2440.8,0.26420863]
[1730804546196,4.98711898,2440.9,2440.8,0.00368754]
[1730804546399,4.09701,2440.8,2440.6,0.01368754]
[1730804546590,0.08044898,2440.7,2440.6,0.01368754]
[1730804546794,4.17762898,2440.7,2440.6,0.01368754]
[1730804547252,4.17762898,2440.7,2440.6,0.00368754]
[1730804547431,4.17762898,2440.7,2440.6,0.26419845]
[1730804548742,7.61138656,2440.7,2440.6,0.26051091]
[1730804548899,6.25365731,2440.7,2440.6,0.00368754]
[1730804549099,6.25365731,2440.7,2440.6,0.26419845]
[1730804549521,4.95152898,2440.7,2440.6,0.26419845]
[1730804554853,4.17762898,2440.7,2440.6,0.26419845]
[1730804555014,4.17762898,2440.7,2440.6,0.00368754]
[1730804555224,4.17762898,2440.7,2440.6,0.26419845]
[1730804560329,4.17762898,2440.7,2440.6,0.00368754]
[1730804560830,4.17762898,2440.7,2440.6,0.26420715]
[1730804561031,6.22633808,2440.7,2440.6,0.26420715]
[1730804561232,8.80596081,2440.7,2440.6,0.26420715]
[1730804561430,6.1458891,2440.7,2440.6,0.26420715]
[1730804561645,8.80596081,2440.7,2440.6,0.26420715]
[1730804561969,6.1458891,2440.7,2440.6,0.26420715]
[1730804562277,7.58406733,2440.7,2440.6,0.26420715]
[1730804562482,10.16425957,2440.7,2440.6,0.26420715]
[1730804562634,10.08381059,2440.7,2440.6,0.26420715]
[1730804563167,7.50361835,2440.7,2440.6,0.26051961]
[1730804563347,7.58406733,2440.7,2440.6,0.26420715]
[1730804563546,10.16425957,2440.7,2440.6,0.26420715]
[1730804563851,10.08381059,2440.7,2440.6,0.26420715]
[1730804564058,10.08381059,2440.7,2440.6,0.00368754]
[1730804564059,6.1458891,2440.7,2440.6,0.00368754]
[1730804564235,6.22633808,2440.7,2440.6,0.00368754]
[1730804564565,6.22633808,2440.7,2440.6,0.26420715]
[1730804565569,8.80653032,2440.7,2440.6,0.26420715]
[1730804565767,8.72608134,2440.7,2440.6,0.26420715]
[1730804566075,6.1458891,2440.7,2440.6,0.26420715]
[1730804566373,4.92802898,2440.7,2440.6,0.26420715]
[1730804566550,7.50822122,2440.7,2440.6,0.26420715]
[1730804567072,7.50901022,2440.7,2440.6,0.26420715]
[1730804568145,7.50901022,2440.7,2440.6,0.00368754]
[1730804568344,7.50901022,2440.7,2440.6,0.26420715]
[1730804568885,7.50901022,2440.7,2440.6,0.00368754]
[1730804569089,7.50901022,2440.7,2440.4,0.01]
[1730804569090,4.09752,2440.5,2440.4,0.00368754]
[1730804569253,4.17796898,2440.5,2440.4,0.00368754]
[1730804569949,4.17796898,2440.5,2440.4,0.26424044]
[1730804570378,4.17796898,2440.5,2440.4,0.27424044]
[1730804570591,7.80426792,2440.5,2440.4,0.2605529]
[1730804571101,7.80426792,2440.5,2440.1,0.01]
[1730804571102,4.09802,2440.2,2440.1,0.01]
[1730804571266,4.17846898,2440.2,2440.1,0.01]
[1730804573350,4.09802,2440.2,2440.1,0.01]
[1730804573556,4.17846898,2440.2,2440.1,0.01]
[1730804574487,4.09802,2440.2,2440.1,0.01]
[1730804577163,4.09802,2440.2,2440.1,0.27081143]
[1730804580698,0.08044898,2440.3,2440.1,0.27081143]
[1730804580900,4.17841898,2440.3,2440.1,0.27081143]
[1730804581401,4.09802,2440.2,2440.1,0.27081143]
[1730804583030,4.17846898,2440.2,2440.1,0.27081143]
[1730804585195,8.1959,2440.3,2440.1,0.27081143]
[1730804585503,4.09793,2440.3,2440.1,0.27081143]
[1730804585801,4.09802,2440.2,2440.1,0.27081143]
[1730804586270,4.17846898,2440.2,2440.1,0.27081143]
[1730804590774,4.17846898,2440.2,2440.1,0.26081143]
[1730804590974,5.47659957,2440.2,2440.1,0.26081143]
[1730804591174,4.09819,2440.1,2439.8,0.00368754]
[1730804591386,4.09869,2439.8,2439.7,0.375598]
[1730804591613,4.17913898,2439.8,2439.7,0.375598]
[1730804591775,4.17913898,2439.8,2439.7,0.63707582]
[1730804591977,5.88723157,2439.8,2439.7,0.63707582]
[1730804592316,5.88723157,2439.8,2439.7,0.375598]
[1730804592670,4.17913898,2439.8,2439.7,0.63722364]
[1730804592910,4.09869,2439.8,2439.7,0.63722364]
[1730804593297,4.17913898,2439.8,2439.7,0.375598]
[1730804593686,4.17913898,2439.8,2439.7,0.6375106]
[1730804594509,4.09869,2439.8,2439.7,0.6375106]
[1730804595076,4.17913898,2439.8,2439.7,0.6375106]
[1730804596376,0.08044898,2439.8,2439.7,1.4403106]
[1730804596579,4.09854,2439.9,2439.8,0.00368754]
[1730804597084,4.09854,2439.9,2439.8,0.2755661]
[1730804597289,4.97538898,2439.9,2439.8,0.00368754]
[1730804597616,4.09869,2439.8,2439.7,0.375598]
[1730804598116,4.17913898,2439.8,2439.7,0.375598]
[1730804598420,5.6321558,2439.8,2439.7,0.63742364]
[1730804598635,6.3980558,2439.8,2439.7,0.63742364]
[1730804598811,7.75578505,2439.8,2439.7,0.375598]
[1730804599112,7.75578505,2439.8,2439.1,0.01]
[1730804599113,4.8656,2439.2,2439.1,0.01]
[1730804599276,4.94604898,2439.2,2439.1,0.01]
[1730804600289,4.1002,2438.9,2438.8,0.01368754]
[1730804600590,4.1002,2438.9,2438.8,0.00368754]
[1730804601122,4.10054,2438.7,2438.6,0.01368754]
[1730804601829,4.18098898,2438.7,2438.6,0.00368754]
[1730804606702,4.18098898,2438.7,2438.4,0.7625]
[1730804606703,4.10071,2438.6,2438.4,0.00368754]
[1730804607003,4.10052,2438.8,2438.4,0.00368754]
[1730804607201,0.08044898,2438.7,2438.5,0.8188]
[1730804607423,0.08044898,2438.7,2438.6,0.01368754]
[1730804607640,4.18058898,2439.0,2438.6,0.01368754]
[1730804608346,4.10029,2438.9,2438.8,0.01368754]
[1730804608847,4.18073898,2438.9,2438.8,0.01368754]
[1730804613852,6.50232905,2438.9,2438.8,0.00368754]
[1730804614057,7.29612905,2438.9,2438.8,0.00368754]
[1730804615242,4.10054,2438.7,2438.6,0.00368754]
[1730804615442,4.18098898,2438.7,2438.6,0.00368754]
[1730804615623,4.18098898,2438.7,2438.6,0.26798459]
[1730804618895,6.58201105,2438.7,2438.6,0.26798459]
[1730804624831,7.37281105,2438.7,2438.6,0.26798459]
[1730804626747,4.10012,2439.0,2438.9,0.01]
[1730804626947,4.18056898,2439.0,2438.9,0.01]
[1730804627762,4.10004,2439.0,2438.9,1.09191692]
[1730804627903,4.18048898,2439.0,2438.9,0.8274]
[1730804628243,4.18048898,2439.0,2438.9,0.26451692]
[1730804628440,5.1443028,2439.0,2438.9,0.26451692]
[1730804629057,4.18048898,2439.0,2438.9,0.26451692]
[1730804644435,4.18048898,2439.0,2438.8,0.00368754]
[1730804644436,4.1002,2438.9,2438.8,0.00368754]
[1730804644603,4.1002,2438.9,2438.8,0.2676466]
[1730804644940,4.18064898,2438.9,2438.8,0.2676466]
[1730804645731,4.18064898,2438.9,2438.8,0.00368754]
[1730804646265,4.18064898,2438.9,2438.8,0.26767272]
[1730804651940,4.93534898,2438.9,2438.8,0.26767272]
[1730804652140,4.18064898,2438.9,2438.8,0.26767272]
[1730804652340,4.18064898,2438.9,2438.8,0.82538754]
[1730804652341,0.08044898,2438.9,2438.8,0.82538754]
[1730804652549,4.09993,2439.1,2439.0,0.01]
[1730804652769,4.18037898,2439.1,2439.0,0.01368754]
[1730804653176,4.09993,2439.1,2439.0,0.01368754]
[1730804653360,4.18037898,2439.1,2439.0,0.01368754]
[1730804653777,8.19963,2439.2,2439.0,0.01368754]
[1730804653987,4.09981,2439.2,2439.0,0.01368754]
[1730804654142,4.18025898,2439.2,2439.1,0.26394387]
[1730804654572,4.09987,2439.1,2439.0,0.01368754]
[1730804654806,4.09987,2439.1,2439.0,0.27764807]
[1730804655918,4.09975,2439.2,2439.0,0.27764807]
[1730804656218,8.28000898,2439.2,2439.0,0.27764807]
[1730804656412,8.19956,2439.2,2439.0,0.27764807]
[1730804656911,4.09975,2439.2,2439.0,0.27764807]
[1730804657085,4.18019898,2439.2,2439.0,0.27764807]
[1730804657286,4.09987,2439.1,2439.0,0.27764807]
[1730804658416,4.09975,2439.2,2439.0,0.27764807]
[1730804658725,4.18019898,2439.2,2439.0,0.27764807]
[1730804659027,4.09975,2439.2,2439.1,0.818]
[1730804659185,4.09975,2439.2,2439.1,1.08194387]
[1730804659384,4.09957,2439.3,2439.2,0.00368754]
[1730804659578,4.09957,2439.3,2439.2,0.26761475]
[1730804660418,6.68146291,2439.4,2439.2,0.26761475]
[1730804660419,10.78091291,2439.4,2439.2,0.26761475]
[1730804660630,4.09936,2439.4,2439.2,0.00368754]
[1730804660917,4.09953,2439.3,2439.2,0.00368754]
[1730804661331,3.34726291,2439.5,2439.4,0.80878754]
[1730804661332,6.68124291,2439.5,2439.4,0.80878754]
[1730804661485,6.68089291,2439.7,2439.6,0.01]
[1730804661685,6.68070291,2439.8,2439.6,0.01368754]
[1730804661993,4.37001931,2440.0,2439.8,0.00368754]
[1730804661994,2.66241189,2439.9,2439.8,0.00368754]
[1730804662137,4.09856,2439.9,2439.8,0.01368754]
[1730804662844,2.58196291,2440.1,2440.0,0.01]
[1730804663151,7.88944006,2440.3,2440.0,0.01]
[1730804663152,2.57908118,2440.3,2440.2,0.01]
[1730804663300,4.17825898,2440.4,2440.3,0.00368754]
[1730804664035,4.09756,2440.5,2440.4,0.01]
[1730804664745,4.09739,2440.6,2440.4,0.01]
[1730804664896,0.08044898,2440.6,2440.5,0.00368754]
[1730804665102,4.09725,2440.7,2440.6,0.01]
[1730804665773,4.17746898,2440.8,2440.7,0.00368754]
[1730804665933,4.09702,2440.8,2440.7,0.00368754]
[1730804666135,4.09702,2440.8,2440.7,0.26602525]
[1730804666523,4.17732898,2440.9,2440.8,0.01]
[1730804667762,4.17732898,2440.9,2440.8,0.27232107]
[1730804668059,4.09688,2440.9,2440.8,0.27232107]
[1730804668661,4.17732898,2440.9,2440.8,0.01]
[1730804669461,4.17732898,2440.9,2440.8,0.27178214]